bitfinex/quotes_BTCUSD_20240821
["timestamp","ask_amount","ask_price","bid_price","bid_amount"]
[1724210644864,0.62200058,59481.0,59480.0,0.009042]
[1724210645064,0.62192841,59481.0,59480.0,0.009042]
[1724210645659,0.62292841,59481.0,59480.0,0.009042]
[1724210647258,0.70132841,59481.0,59480.0,0.009042]
[1724210647432,0.70015041,59481.0,59480.0,0.009042]
[1724210647852,0.70215041,59481.0,59480.0,0.009042]
[1724210648682,0.72515041,59481.0,59480.0,0.009042]
[1724210650474,0.72694807,59481.0,59480.0,0.009042]
[1724210651321,0.72694807,59481.0,59480.0,0.00196001]
[1724210651535,0.2618,59472.0,59471.0,0.0002]
[1724210651712,0.48350415,59472.0,59471.0,0.0002]
[1724210651919,0.52889806,59472.0,59471.0,0.0002]
[1724210652885,0.52889806,59472.0,59471.0,0.0012]
[1724210653717,0.52889806,59472.0,59471.0,0.0052]
[1724210654217,0.59323787,59472.0,59471.0,0.0012]
[1724210654649,0.59523787,59472.0,59471.0,0.0012]
[1724210654849,0.59523787,59472.0,59471.0,0.0002]
[1724210655049,0.60536818,59472.0,59471.0,0.0002]
[1724210655250,0.61536818,59472.0,59471.0,0.0002]
[1724210655739,0.61336818,59472.0,59471.0,0.0002]
[1724210656754,0.36552422,59472.0,59471.0,0.1419]
[1724210656981,0.48302422,59472.0,59471.0,0.1419]
[1724210657164,0.48902422,59472.0,59471.0,0.1429]
[1724210657604,0.53792664,59472.0,59471.0,0.1429]
[1724210658021,0.28902422,59472.0,59471.0,0.1429]
[1724210658443,0.47889391,59472.0,59471.0,0.1429]
[1724210659441,0.47889391,59472.0,59471.0,0.14310234]
[1724210660050,0.47889391,59472.0,59471.0,0.1429]
[1724210660251,0.47889391,59472.0,59471.0,0.1438042]
[1724210661430,0.16139391,59472.0,59471.0,0.1438042]
[1724210661625,0.06139391,59472.0,59471.0,0.14635496]
[1724210661839,0.016,59472.0,59471.0,0.5929747]
[1724210662036,0.016,59472.0,59471.0,0.51730697]
[1724210662217,0.000822,59481.0,59480.0,0.00020234]
[1724210662419,0.000822,59481.0,59480.0,0.14620234]
[1724210662618,0.04550121,59481.0,59480.0,0.14620234]
[1724210663198,0.04550121,59481.0,59480.0,0.14520234]
[1724210663788,0.001822,59481.0,59480.0,0.14920234]
[1724210664113,0.001822,59481.0,59480.0,0.14820234]
[1724210665115,0.000822,59481.0,59480.0,0.14420234]
[1724210665542,0.001822,59481.0,59480.0,0.15320234]
[1724210665740,0.001822,59481.0,59480.0,0.15120234]
[1724210666187,0.002822,59481.0,59480.0,0.16020234]
[1724210666612,0.001822,59481.0,59480.0,0.15120234]
[1724210666818,0.002822,59481.0,59480.0,0.16020234]
[1724210667185,0.001822,59481.0,59480.0,0.15120234]
[1724210667392,0.000822,59481.0,59480.0,0.14420234]
[1724210667795,0.001822,59481.0,59480.0,0.15120234]
[1724210668325,0.000822,59481.0,59480.0,0.14420234]
[1724210668525,0.002822,59481.0,59480.0,0.16020234]
[1724210669734,0.00170972,59481.0,59480.0,0.16020234]
[1724210670114,0.00170972,59481.0,59480.0,0.16474961]
[1724210670315,0.00170972,59481.0,59480.0,0.16274961]
[1724210670890,0.00070972,59481.0,59480.0,0.15474961]
[1724210671091,0.00170972,59481.0,59480.0,0.16174961]
[1724210671809,0.000822,59486.0,59481.0,0.1397]
[1724210672007,0.000822,59486.0,59480.0,0.007]
[1724210672238,0.000822,59486.0,59482.0,0.1387]
[1724210672770,0.000822,59486.0,59482.0,0.1377]
[1724210673605,0.001822,59483.0,59482.0,0.15324823]
[1724210674823,0.001822,59483.0,59482.0,0.16724823]
[1724210676931,0.001822,59483.0,59482.0,0.1657]
[1724210693244,0.1175,59484.0,59483.0,0.00407403]
[1724210694811,0.1185,59484.0,59483.0,0.01707403]
[1724210695572,0.119322,59484.0,59483.0,0.01707403]
[1724210695776,0.120322,59484.0,59483.0,0.03107403]
[1724210696170,0.34119796,59484.0,59483.0,0.03107403]
[1724210696368,0.40549796,59484.0,59483.0,0.03107403]
[1724210696900,0.40449796,59484.0,59483.0,0.01707403]
[1724210697104,0.40549796,59484.0,59483.0,0.02507403]
[1724210697545,0.41487209,59484.0,59483.0,0.01207403]
[1724210697746,0.41487209,59484.0,59483.0,0.01707403]
[1724210700274,0.41587209,59484.0,59483.0,0.01707403]
[1724210700505,0.41587209,59484.0,59480.0,0.0009042]
[1724210700506,0.0811,59481.0,59480.0,0.0009042]
[1724210700708,0.30887972,59481.0,59480.0,0.0009042]
[1724210700912,0.41187972,59481.0,59480.0,0.0009042]
[1724210701113,0.41287972,59481.0,59480.0,0.0009042]
[1724210701537,0.40887972,59481.0,59480.0,0.0009042]
[1724210701737,0.47788425,59481.0,59480.0,0.0009042]
[1724210701942,0.47688425,59481.0,59480.0,0.0009042]
[1724210702141,0.41167596,59481.0,59480.0,0.0019042]
[1724210702545,0.41067596,59481.0,59480.0,0.0019042]
[1724210702728,0.41767596,59481.0,59480.0,0.0029042]
[1724210703315,0.48056317,59481.0,59480.0,0.0029042]
[1724210704144,0.41767596,59481.0,59480.0,0.0029042]
[1724210708320,0.30017596,59481.0,59480.0,0.0029042]
[1724210708515,0.27617596,59481.0,59480.0,0.0029042]
[1724210710482,0.27597362,59481.0,59480.0,0.0029042]
[1724210712354,0.26197362,59481.0,59480.0,0.0009042]
[1724210712562,0.16246297,59481.0,59480.0,0.0009042]
[1724210712766,0.16746297,59481.0,59480.0,0.0009042]
[1724210713213,0.16046297,59481.0,59480.0,0.0009042]
[1724210713414,0.16346297,59481.0,59480.0,0.0009042]
[1724210713952,0.16046297,59481.0,59480.0,0.0009042]
[1724210714233,0.16446297,59481.0,59480.0,0.0009042]
[1724210715281,0.16546297,59481.0,59476.0,0.0274042]
[1724210715535,0.2175,59477.0,59476.0,0.0274042]
[1724210715748,0.1,59477.0,59476.0,0.0274042]
[1724210715937,0.2175,59477.0,59476.0,0.0274042]
[1724210716655,0.2175,59477.0,59476.0,0.0284042]
[1724210717368,0.2175,59477.0,59476.0,0.0274042]
[1724210717985,0.1,59477.0,59476.0,0.0274042]
[1724210718195,0.1,59479.0,59477.0,0.00294407]
[1724210718641,0.1,59479.0,59477.0,0.00194407]
[1724210718989,0.1,59479.0,59478.0,0.144]
[1724210719195,0.100822,59483.0,59478.0,0.144]
[1724210719307,0.1175,59481.0,59478.0,0.144]
[1724210719515,0.1,59480.0,59478.0,0.144]
[1724210719742,0.09877556,59480.0,59478.0,0.144]
[1724210720917,0.09877556,59480.0,59479.0,0.0787]
[1724210721129,0.000822,59483.0,59479.0,0.0787]
[1724210722123,0.100822,59483.0,59479.0,0.0787]
[1724210722758,0.04003016,59482.0,59479.0,0.0817]
[1724210723527,0.04003016,59482.0,59480.0,0.0611]
[1724210723779,0.000822,59483.0,59482.0,0.0611]
[1724210723982,0.000822,59483.0,59482.0,0.1398]
[1724210725205,0.0408459,59483.0,59482.0,0.1398]
[1724210725406,0.000822,59483.0,59482.0,0.1428]
[1724210725604,0.04084773,59483.0,59482.0,0.1428]
[1724210733116,0.04084773,59483.0,59482.0,0.003]
[1724210733232,0.10264773,59483.0,59482.0,0.003]
[1724210739757,0.04084773,59483.0,59482.0,0.003]
[1724210746184,0.04084773,59483.0,59482.0,0.1405]
[1724210749398,0.000822,59483.0,59482.0,0.1405]
[1724210749618,0.000822,59483.0,59482.0,0.1375]
[1724210749811,0.001822,59483.0,59482.0,0.1505]
[1724210750572,0.001822,59483.0,59482.0,0.15204841]
[1724210752378,0.001822,59483.0,59482.0,0.20247405]
[1724210752783,0.001822,59483.0,59482.0,0.20247505]
[1724210752986,0.001822,59483.0,59482.0,0.15204841]
[1724210753193,0.001822,59483.0,59482.0,0.1505]
[1724210757661,0.001822,59483.0,59482.0,0.20093012]
[1724210758337,0.001822,59483.0,59482.0,0.1505]
[1724210758630,0.001822,59483.0,59482.0,0.1515]
[1724210758837,0.001822,59483.0,59482.0,0.20247837]
[1724210759264,0.001822,59483.0,59482.0,0.15204825]
[1724210759675,0.001822,59483.0,59482.0,0.14704825]
[1724210760080,0.002822,59483.0,59482.0,0.16004825]
[1724210760281,0.000822,59483.0,59482.0,0.13904825]
[1724210760532,0.001822,59483.0,59482.0,0.1515]
[1724210760732,0.002822,59483.0,59482.0,0.1645]
[1724210760953,0.001822,59483.0,59482.0,0.20193597]
[1724210761125,0.000822,59483.0,59482.0,0.18793597]
[1724210761688,0.000822,59483.0,59482.0,0.1375]
[1724210761900,0.000822,59483.0,59482.0,0.18793944]
[1724210762054,0.11259452,59486.0,59482.0,0.18793944]
[1724210762249,0.11259452,59486.0,59483.0,0.05043944]
[1724210763445,0.10670469,59486.0,59483.0,0.05043944]
[1724210763844,0.10670469,59486.0,59483.0,0.009]
[1724210764271,0.10670469,59486.0,59483.0,0.07043944]
[1724210765077,0.10450647,59486.0,59483.0,0.07043944]
[1724210765873,0.162,59492.0,59485.0,0.076]
[1724210765874,0.1,59492.0,59485.0,0.076]
[1724210766235,0.0662,59497.0,59490.0,0.065]
[1724210766367,0.04001088,59496.0,59490.0,0.065]
[1724210766567,0.14001088,59496.0,59490.0,0.065]
[1724210766793,0.04001088,59495.0,59490.0,0.065]
[1724210768897,0.04001088,59494.0,59490.0,0.065]
[1724210769098,0.04001088,59493.0,59490.0,0.065]
[1724210769330,0.04001088,59492.0,59490.0,0.067]
[1724210769530,0.101,59495.0,59490.0,0.067]
[1724210769907,0.04000903,59494.0,59490.0,0.065]
[1724210770256,0.04000903,59494.0,59490.0,0.071]
[1724210770458,0.04000903,59494.0,59490.0,0.069]
[1724210770657,0.04000903,59494.0,59490.0,0.065]
[1724210771030,0.04000903,59494.0,59490.0,0.072]
[1724210771965,0.1175,59497.0,59490.0,0.072]
[1724210772177,0.14000311,59496.0,59490.0,0.07]
[1724210772407,0.1,59496.0,59490.0,0.07]
[1724210772655,0.001,59494.0,59490.0,0.076]
[1724210772856,0.1,59496.0,59490.0,0.065]
[1724210773323,0.1,59496.0,59490.0,0.068]
[1724210773535,0.001,59494.0,59490.0,0.073]
[1724210773933,0.002,59494.0,59490.0,0.079]
[1724210774159,0.001,59494.0,59490.0,0.071]
[1724210774367,0.1,59496.0,59490.0,0.071]
[1724210775500,0.1,59496.0,59491.0,0.0791]
[1724210775703,0.1175,59498.0,59491.0,0.0791]
[1724210775850,0.13999228,59497.0,59491.0,0.0791]
[1724210776070,0.03999228,59496.0,59491.0,0.0791]
[1724210776254,0.001,59494.0,59491.0,0.0791]
[1724210776683,0.1,59497.0,59491.0,0.0791]
[1724210776684,0.0399922,59493.0,59491.0,0.0791]
[1724210776887,0.1,59497.0,59486.0,0.05042513]
[1724210776888,0.1175,59492.0,59487.0,0.1446]
[1724210777093,0.1175,59492.0,59491.0,0.007]
[1724210777294,0.1175,59492.0,59491.0,0.005]
[1724210777474,0.0765,59494.0,59491.0,0.005]
[1724210777671,0.03999962,59493.0,59491.0,0.011]
[1724210777873,0.13999962,59493.0,59491.0,0.006]
[1724210778128,0.1,59493.0,59492.0,0.1419]
[1724210778249,0.1399957,59493.0,59492.0,0.1419]
[1724210779078,0.0399957,59493.0,59492.0,0.1419]
[1724210779282,0.0399957,59499.0,59492.0,0.1409]
[1724210779483,0.0399957,59499.0,59493.0,0.00154679]
[1724210779709,0.100822,59502.0,59493.0,0.00154679]
[1724210779710,0.0399957,59498.0,59494.0,0.0646]
[1724210779911,0.000822,59502.0,59495.0,0.00154641]
[1724210779912,0.0399957,59497.0,59495.0,0.00154641]
[1724210780117,0.000822,59502.0,59494.0,0.0646]
[1724210780339,0.03999599,59501.0,59494.0,0.0636]
[1724210781032,0.15749599,59501.0,59495.0,0.005]
[1724210781239,0.03999599,59500.0,59495.0,0.005]
[1724210781438,0.03999599,59500.0,59494.0,0.0636]
[1724210782327,0.03999599,59500.0,59495.0,0.0797]
[1724210783777,0.03999599,59500.0,59495.0,0.0827]
[1724210784006,0.03999599,59500.0,59495.0,0.0837]
[1724210787702,0.1175,59499.0,59495.0,0.0837]
[1724210787915,0.03999599,59498.0,59495.0,0.0837]
[1724210789067,0.03999599,59498.0,59495.0,0.0807]
[1724210789431,0.03999599,59498.0,59495.0,0.0847]
[1724210789752,0.03999599,59498.0,59495.0,0.0837]
[1724210790052,0.03999599,59498.0,59495.0,0.0827]
[1724210790178,0.03999599,59498.0,59495.0,0.0877]
[1724210790654,0.03999599,59498.0,59495.0,0.008]
[1724210790655,0.1832,59496.0,59495.0,0.008]
[1724210790915,0.22319599,59496.0,59495.0,0.008]
[1724210791214,0.30059599,59496.0,59495.0,0.008]
[1724210791444,0.60059599,59496.0,59495.0,0.008]
[1724210791649,0.6616765,59496.0,59495.0,0.008]
[1724210792103,0.6616765,59496.0,59495.0,0.003]
[1724210792512,0.6616765,59496.0,59495.0,0.01]
[1724210792714,0.6616765,59496.0,59495.0,0.007]
[1724210792911,0.1431,59495.0,59482.0,0.0009042]
[1724210793136,0.1175,59485.0,59482.0,0.0009042]
[1724210793337,0.03999599,59484.0,59482.0,0.0009042]
[1724210793543,0.03979366,59484.0,59482.0,0.0009042]
[1724210794876,0.04079366,59484.0,59482.0,0.0079042]
[1724210795103,0.03979366,59483.0,59482.0,0.0079042]
[1724210795415,0.001,59484.0,59482.0,0.0079042]
[1724210795851,0.03998577,59483.0,59482.0,0.0079042]
[1724210796257,0.03998577,59483.0,59482.0,0.0009042]
[1724210796497,0.04098577,59484.0,59482.0,0.0109042]
[1724210796714,0.03998577,59483.0,59482.0,0.0109042]
[1724210796918,0.04098577,59483.0,59482.0,0.0099042]
[1724210797368,0.002,59483.0,59482.0,0.0209042]
[1724210802295,0.1405,59483.0,59482.0,0.0209042]
[1724210802491,0.18048579,59483.0,59482.0,0.0209042]
[1724210809479,0.2846891,59483.0,59482.0,0.0209042]
[1724210810805,0.2836891,59483.0,59482.0,0.0119042]
[1724210811017,0.2826891,59483.0,59482.0,0.0009042]
[1724210811289,0.350746,59483.0,59482.0,0.0009042]
[1724210811498,0.345746,59483.0,59482.0,0.0009042]
[1724210812121,0.463246,59483.0,59482.0,0.0009042]
[1724210812324,0.461246,59483.0,59482.0,0.0009042]
[1724210812726,0.468246,59483.0,59482.0,0.0009042]
[1724210816401,0.4071891,59483.0,59482.0,0.0009042]
[1724210817756,0.4051891,59483.0,59482.0,0.0009042]
[1724210818213,0.4071891,59483.0,59482.0,0.0009042]
[1724210819111,0.4021891,59483.0,59482.0,0.0009042]
[1724210819327,0.4071891,59483.0,59482.0,0.0009042]
[1724210822717,0.4690282,59483.0,59482.0,0.0009042]
[1724210823704,0.4640282,59483.0,59482.0,0.0009042]
[1724210823904,0.4670282,59483.0,59482.0,0.0009042]
[1724210824131,0.4690282,59483.0,59482.0,0.0009042]
[1724210828913,0.4690282,59483.0,59482.0,0.00047957]
[1724210830564,0.46778575,59483.0,59482.0,0.00047957]
[1724210831240,0.40594665,59483.0,59482.0,0.00047957]
[1724210831481,0.26448579,59483.0,59482.0,0.00047957]
[1724210831711,0.26448579,59483.0,59482.0,0.07617957]
[1724210831946,0.26448579,59483.0,59482.0,0.13857957]
[1724210832867,0.25948579,59483.0,59482.0,0.13857957]
[1724210833079,0.26248579,59483.0,59482.0,0.13857957]
[1724210833306,0.25948579,59483.0,59482.0,0.13857957]
[1724210833785,0.25748579,59483.0,59482.0,0.13857957]
[1724210834699,0.26048579,59483.0,59482.0,0.13857957]
[1724210835344,0.26048579,59483.0,59482.0,0.07617957]
[1724210836665,0.25748579,59483.0,59482.0,0.07617957]
[1724210838155,0.26048579,59483.0,59482.0,0.07617957]
[1724210838374,0.25748579,59483.0,59482.0,0.07717957]
[1724210838660,0.25948579,59483.0,59482.0,0.07717957]
[1724210839938,0.25948579,59483.0,59482.0,0.07617957]
[1724210840192,0.25748579,59483.0,59482.0,0.07617957]
[1724210841144,0.25748579,59483.0,59482.0,0.07717957]
[1724210842091,0.26048579,59483.0,59482.0,0.07717957]
[1724210842335,0.26048579,59483.0,59482.0,0.00147957]
[1724210842336,0.25748579,59483.0,59482.0,0.00147957]
[1724210842577,0.26368909,59483.0,59482.0,0.00147957]
[1724210842851,0.26168909,59483.0,59482.0,0.00147957]
[1724210843082,0.26168909,59483.0,59482.0,0.00047957]
[1724210843325,0.44203357,59483.0,59482.0,0.00047957]
[1724210852901,0.41198909,59483.0,59482.0,0.00047957]
[1724210853162,0.26048579,59483.0,59482.0,0.00047957]
[1724210853431,0.26048579,59483.0,59482.0,0.14357957]
[1724210853916,0.26130779,59483.0,59482.0,0.14357957]
[1724210854183,0.26130779,59483.0,59482.0,0.07797957]
[1724210854417,0.26130779,59483.0,59482.0,0.00047957]
[1724210854654,0.26551117,59483.0,59482.0,0.00047957]
[1724210856011,0.26551106,59483.0,59482.0,0.00047957]
[1724210856243,0.14380779,59483.0,59482.0,0.14387957]
[1724210856446,0.16130779,59483.0,59482.0,0.14387957]
[1724210856603,0.26130779,59483.0,59482.0,0.14387957]
[1724210856985,0.25830779,59483.0,59482.0,0.14387957]
[1724210857393,0.25830779,59483.0,59482.0,0.07977957]
[1724210858559,0.26130779,59483.0,59482.0,0.07977957]
[1724210858774,0.25830779,59483.0,59482.0,0.07977957]
[1724210859102,0.25830779,59483.0,59482.0,0.08277957]
[1724210859103,0.29483471,59483.0,59482.0,0.08277957]
[1724210859774,0.29483471,59483.0,59482.0,0.07977957]
[1724210860130,0.29483471,59483.0,59482.0,0.08077957]
[1724210860865,0.14180779,59483.0,59482.0,0.08077957]
[1724210861059,0.25930779,59483.0,59482.0,0.14237957]
[1724210861805,0.25830779,59483.0,59482.0,0.14237957]
[1724210862214,0.25830779,59483.0,59482.0,0.14137957]
[1724210862614,0.25830779,59483.0,59482.0,0.14337957]
[1724210863465,0.25830779,59483.0,59482.0,0.14137957]
[1724210863665,0.25830779,59483.0,59482.0,0.14337957]
[1724210864048,0.25830779,59483.0,59482.0,0.14137957]
[1724210865142,0.25930779,59483.0,59482.0,0.14137957]
[1724210865623,0.25930779,59483.0,59482.0,0.14337957]
[1724210865832,0.25830779,59483.0,59482.0,0.14337957]
[1724210866639,0.04080779,59483.0,59482.0,0.14337957]
[1724210868537,0.04080779,59483.0,59482.0,0.14137957]
[1724210868745,0.04080779,59483.0,59482.0,0.14337957]
[1724210869333,0.04080779,59483.0,59482.0,0.14137957]
[1724210869713,0.04080779,59483.0,59482.0,0.15337957]
[1724210871327,0.04080779,59483.0,59482.0,0.15437957]
[1724210871493,0.04080779,59483.0,59482.0,0.15537957]
[1724210871724,0.000822,59483.0,59482.0,0.15537957]
[1724210872023,0.000822,59483.0,59482.0,0.59235324]
[1724210872222,0.000822,59483.0,59482.0,0.51662515]
[1724210872445,0.001822,59483.0,59482.0,0.59929308]
[1724210872694,0.001822,59483.0,59482.0,0.60729308]
[1724210873042,0.001822,59483.0,59482.0,0.60029308]
[1724210873251,0.000822,59483.0,59482.0,0.60029308]
[1724210873422,0.000822,59483.0,59482.0,0.14337957]
[1724210873624,0.00159623,59483.0,59482.0,0.15637957]
[1724210874448,0.00159623,59483.0,59482.0,0.20680109]
[1724210874675,0.00159623,59483.0,59482.0,0.61828243]
[1724210874877,0.00159623,59483.0,59482.0,0.6601145]
[1724210875475,0.00059623,59483.0,59482.0,0.74892113]
[1724210875678,0.00059623,59483.0,59482.0,0.73592113]
[1724210875902,0.00059623,59483.0,59482.0,0.76392113]
[1724210876268,0.00059623,59483.0,59482.0,0.74992113]
[1724210876472,0.00059623,59483.0,59482.0,0.80032798]
[1724210876685,0.00059623,59483.0,59482.0,0.80008159]
[1724210877060,0.00039389,59483.0,59482.0,0.80008159]
[1724210877666,0.00039389,59483.0,59482.0,0.6741145]
[1724210877808,0.00039389,59483.0,59482.0,0.6881145]
[1724210878546,0.00039389,59483.0,59482.0,0.78883255]
[1724210879599,0.00039389,59483.0,59482.0,0.6881145]
[1724210881259,0.000822,59496.0,59493.0,0.083]
[1724210881434,0.000822,59496.0,59495.0,0.083]
[1724210881664,0.000822,59496.0,59495.0,0.1449]
[1724210882043,0.000822,59496.0,59495.0,0.1459]
[1724210883003,0.000822,59496.0,59495.0,0.1449]
[1724210883402,0.000822,59496.0,59495.0,0.1479]
[1724210883643,0.000822,59496.0,59495.0,0.1449]
[1724210883960,0.000822,59496.0,59495.0,0.1539]
[1724210884742,0.000822,59496.0,59495.0,0.1599]
[1724210885297,0.000822,59496.0,59495.0,0.1539]
[1724210885703,0.000822,59496.0,59495.0,0.1649]
[1724210887685,0.000822,59496.0,59495.0,0.1679]
[1724210887970,0.000822,59496.0,59495.0,0.1909]
[1724210888078,0.000822,59496.0,59495.0,0.27491783]
[1724210888283,0.000822,59496.0,59495.0,0.67315633]
[1724210888688,0.000822,59496.0,59495.0,0.65315633]
[1724210888883,0.000822,59496.0,59495.0,0.66715633]
[1724210889111,0.000822,59496.0,59495.0,0.60572459]
[1724210889288,0.000822,59496.0,59495.0,0.29394584]
[1724210889493,0.000822,59496.0,59495.0,0.57972106]
[1724210889689,0.000822,59496.0,59495.0,0.59372106]
[1724210889990,0.000822,59496.0,59495.0,0.57972106]
[1724210890201,0.000822,59496.0,59495.0,0.66900954]
[1724210891065,0.000822,59496.0,59495.0,0.68300954]
[1724210891265,0.000822,59496.0,59495.0,0.23463]
[1724210891719,0.000822,59496.0,59495.0,0.22063]
[1724210891918,0.000822,59496.0,59495.0,0.23463]
[1724210892327,0.000822,59496.0,59495.0,0.28479619]
[1724210893216,0.000822,59509.0,59495.0,0.28479619]
[1724210893217,0.11591854,59514.0,59510.0,0.0772]
[1724210893519,0.11591854,59514.0,59510.0,0.0782]
[1724210893908,0.11591854,59514.0,59511.0,0.001]
[1724210894328,0.11591854,59514.0,59510.0,0.0782]
[1724210894548,0.11591854,59514.0,59510.0,0.0882]
[1724210894757,0.11591854,59514.0,59511.0,0.002]
[1724210895370,0.11591854,59514.0,59511.0,0.011]
[1724210895496,0.11591854,59514.0,59511.0,0.009]
[1724210896142,0.11591854,59514.0,59511.0,0.015]
[1724210898650,0.005,59513.0,59511.0,0.015]
[1724210899478,0.005,59513.0,59511.0,0.009]
[1724210899851,0.005,59513.0,59511.0,0.016]
[1724210900291,0.005,59513.0,59511.0,0.007]
[1724210900499,0.00280003,59513.0,59511.0,0.007]
[1724210900839,0.00280003,59513.0,59511.0,0.017]
[1724210901149,0.00280003,59513.0,59511.0,0.0179031]
[1724210901311,0.00280003,59513.0,59511.0,0.02795771]
[1724210901517,0.00280003,59513.0,59511.0,0.0179031]
[1724210901832,0.1439,59512.0,59511.0,0.0179031]
[1724210902632,0.1439,59512.0,59511.0,0.0109031]
[1724210903113,0.1439,59512.0,59511.0,0.0199031]
[1724210903599,0.1439,59512.0,59511.0,0.0099031]
[1724210903844,0.1439,59512.0,59511.0,0.0209031]
[1724210905103,0.28127017,59512.0,59511.0,0.0209031]
[1724210905342,0.32113416,59512.0,59511.0,0.0209031]
[1724210905810,0.32113416,59512.0,59511.0,0.0119031]
[1724210906255,0.32113416,59512.0,59511.0,0.0159031]
[1724210906661,0.32113416,59512.0,59511.0,0.0049031]
[1724210907025,0.28376399,59512.0,59511.0,0.0119031]
[1724210907236,0.28353914,59512.0,59511.0,0.0119031]
[1724210907577,0.28353914,59512.0,59511.0,0.0009031]
[1724210911578,0.28353914,59512.0,59489.0,0.002]
[1724210911579,0.1467,59499.0,59491.0,0.4771]
[1724210911776,0.2,59504.0,59483.0,0.57219154]
[1724210911777,0.0645,59491.0,59483.0,0.57219154]
[1724210911982,0.1175,59484.0,59483.0,0.57219154]
[1724210912184,0.1175,59484.0,59483.0,0.0799]
[1724210913050,0.1175,59484.0,59482.0,0.00047957]
[1724210913662,0.0822,59490.0,59482.0,0.00047957]
[1724210913663,0.1175,59487.0,59482.0,0.00047957]
[1724210914063,0.1175,59487.0,59483.0,0.014]
[1724210915051,0.1175,59487.0,59482.0,0.00047957]
[1724210915253,0.1175,59487.0,59482.0,0.00947957]
[1724210915462,0.1175,59487.0,59482.0,0.00047957]
[1724210915806,0.11707385,59487.0,59483.0,0.009]
[1724210917360,0.1175,59484.0,59483.0,0.021]
[1724210917564,0.2175,59484.0,59483.0,0.021]
[1724210917766,0.25740798,59484.0,59483.0,0.012]
[1724210918400,0.2175,59484.0,59482.0,0.00047957]
[1724210918556,0.21161059,59484.0,59482.0,0.00047957]
[1724210918753,0.21261059,59484.0,59483.0,0.013]
[1724210919521,0.21161059,59484.0,59482.0,0.00047957]
[1724210919726,0.21161059,59484.0,59483.0,0.014]
[1724210920536,0.1,59484.0,59483.0,0.014]
[1724210920751,0.1,59485.0,59483.0,0.014]
[1724210920917,0.1,59485.0,59482.0,0.01347957]
[1724210921123,0.1,59485.0,59483.0,0.009]
[1724210922102,0.1,59485.0,59483.0,0.016]
[1724210922300,0.1,59485.0,59483.0,0.009]
[1724210922702,0.1,59485.0,59483.0,0.015]
[1724210923067,0.1,59485.0,59483.0,0.006]
[1724210923282,0.101,59485.0,59483.0,0.014]
[1724210924902,0.101,59485.0,59483.0,0.0149042]
[1724210925105,0.1,59484.0,59483.0,0.0149042]
[1724210926248,0.0645,59486.0,59483.0,0.0069042]
[1724210926765,0.0645,59486.0,59483.0,0.0159042]
[1724210926969,0.08893,59486.0,59483.0,0.0099042]
[1724210927174,0.08893,59486.0,59483.0,0.0009042]
[1724210927374,0.001,59484.0,59483.0,0.0149042]
[1724210927578,0.08893,59486.0,59483.0,0.0079042]
[1724210927779,0.0645,59486.0,59483.0,0.0079042]
[1724210928537,0.1,59487.0,59483.0,0.0129042]
[1724210929356,0.1,59487.0,59483.0,0.0059042]
[1724210929763,0.1,59487.0,59483.0,0.0119042]
[1724210930091,0.12822278,59487.0,59483.0,0.0069042]
[1724210930498,0.12822278,59487.0,59483.0,0.0109042]
[1724210930877,0.12402,59487.0,59483.0,0.0109042]
[1724210931084,0.1,59487.0,59483.0,0.0109042]
[1724210936521,0.1,59487.0,59483.0,0.0891042]
[1724210939524,0.03992955,59486.0,59483.0,0.0109042]
[1724210940382,0.03992955,59486.0,59483.0,0.0049042]
[1724210940790,0.06794251,59486.0,59483.0,0.0079042]
[1724210940944,0.02801296,59486.0,59483.0,0.0079042]
[1724210941147,0.02801296,59486.0,59483.0,0.0129042]
[1724210941363,0.03993153,59485.0,59483.0,0.0129042]
[1724210941950,0.1,59487.0,59483.0,0.0129042]
[1724210942130,0.03992987,59486.0,59483.0,0.0785042]
[1724210942331,0.03992987,59485.0,59483.0,0.0715042]
[1724210942580,0.03992987,59484.0,59483.0,0.0795042]
[1724210942783,0.13992987,59484.0,59483.0,0.0745042]
[1724210943186,0.13992987,59484.0,59483.0,0.0805042]
[1724210943576,0.13992987,59484.0,59483.0,0.0665042]
[1724210943801,0.13992987,59484.0,59483.0,0.0735042]
[1724210944007,0.14092987,59484.0,59483.0,0.0825042]
[1724210944224,0.14092987,59484.0,59483.0,0.1629042]
[1724210945161,0.04092987,59484.0,59483.0,0.1629042]
[1724210945872,0.14092987,59484.0,59483.0,0.1629042]
[1724210951028,0.04092987,59484.0,59483.0,0.1629042]
[1724210951668,0.04092987,59484.0,59483.0,0.1659042]
[1724210951865,0.001,59484.0,59483.0,0.1659042]
[1724210952507,0.001,59484.0,59483.0,0.61448191]
[1724210952717,0.000822,59486.0,59485.0,0.003]
[1724210952927,0.000822,59486.0,59485.0,0.19725318]
[1724210953132,0.000822,59486.0,59485.0,0.19625318]
[1724210953746,0.000822,59486.0,59485.0,0.19525318]
[1724210954194,0.000822,59486.0,59485.0,0.220266]
[1724210954373,0.001822,59486.0,59485.0,0.1579]
[1724210954973,0.001822,59486.0,59485.0,0.233266]
[1724210955165,0.001822,59486.0,59485.0,0.54510906]
[1724210955380,0.001822,59486.0,59485.0,0.64368536]
[1724210955786,0.001822,59486.0,59485.0,0.56810906]
[1724210956199,0.001822,59486.0,59485.0,0.66859707]
[1724210956400,0.00163065,59486.0,59485.0,0.66859707]
[1724210956715,0.00163065,59486.0,59485.0,0.66889885]
[1724210957284,0.00163065,59486.0,59485.0,0.56810743]
[1724210957483,0.00163065,59486.0,59485.0,0.66792453]
[1724210957686,0.00163065,59486.0,59485.0,0.66892453]
[1724210960050,0.00142831,59486.0,59485.0,0.66892453]
[1724210960601,0.00138095,59486.0,59485.0,0.66892453]
[1724210961353,0.00138095,59486.0,59485.0,0.56810743]
[1724210961554,0.00138095,59486.0,59485.0,0.56901161]
[1724210962148,0.00138095,59486.0,59485.0,0.56801161]
[1724210962351,0.00138095,59486.0,59485.0,0.64358723]
[1724210962598,0.00138095,59486.0,59485.0,0.64458723]
[1724210966365,0.00138095,59486.0,59485.0,0.27137982]
[1724210966606,0.00138095,59486.0,59485.0,0.27135938]
[1724210966809,0.00138095,59486.0,59485.0,0.27035938]
[1724210967542,0.00118976,59486.0,59485.0,0.27035938]
[1724210967937,0.00118976,59486.0,59485.0,0.20905938]